{"text_format":"1","workbook":"xlsx","n_sheets":4,"sheets":["FORMULARZ","WYNIK1","Arkusz3","WYNIK"],"not_rendered":{"charts":0,"images":1,"macros":1,"external_links":1,"defined_names":35,"comments":0,"pivot_tables":0},"unopened":[],"bounds":{"document_bytes":16777216,"sheet_cells":100000,"rows_first":2000,"rows_last":500,"rows_between":2000,"halvings":0,"cell_chars":16384,"cell_head_chars":4096},"cells_cut":0,"cells_raw":0,"read":"whole","date_system":"1900"}

{"sheet":"FORMULARZ","index":0,"n_rows":70,"n_cols":19,"rows_kept":70,"cut":false,"hidden":false,"merged":[[29,1,29,4],[16,1,16,18],[17,3,17,6],[19,0,20,6],[21,0,22,6],[12,0,14,11],[23,1,23,4],[24,1,28,4],[27,5,28,5],[27,6,28,6],[42,1,42,4],[43,1,43,4],[44,1,44,4],[53,1,53,4],[56,1,56,4],[50,1,50,4],[51,1,51,4],[52,1,52,4],[54,1,54,4],[55,1,55,4],[49,1,49,4],[61,0,61,14],[62,0,62,14],[65,0,67,0],[65,1,67,3],[65,8,67,10],[65,13,69,16],[68,1,68,3],[68,8,68,10],[69,1,69,3],[69,4,69,5],[69,8,69,10],[65,6,69,7],[39,1,39,4],[30,1,30,4],[47,1,47,4],[48,1,48,4],[33,1,33,4],[31,1,31,4],[32,1,32,4],[34,1,34,4],[35,1,35,4],[36,1,36,4],[37,1,37,4],[38,1,38,4],[45,1,45,4],[46,1,46,4],[40,1,40,4],[41,1,41,4]]}
[]
[]
[]
[]
[null,null,null,null,null,null,null,null,null,null,null,null,null,null,null,null,null,null,0]
[]
[]
[]
[]
[]
[]
[]
["Wprowadzenie:\nProgram umożliwia naliczenie wysokości pomocy de minimis za rok 2021 \nMożliwość ubiegania się o pomoc de minimis przysługuje podmiotom, które w danym roku sprawozdawczym wprowadziły do obrotu nie więcej niż 1 tonę opakowań ogółem.\nPo wprowadzeniu danych wyliczona wysokość pomocy umieszczona zostanie w zakładce \"WYNIK\".\n\nZłożenie dokumentów o pomoc de minimis nie zwalnia podmiotu z obowiązku sporządzenia sprawozdania w Bazie danych o produktach i opakowaniach oraz o gospodarce odpadami (BDO)."]
[]
[]
[]
[]
[null,null,null,"UWAGA! Masę należy uzupełnić w tonach [Mg] !!!"]
[]
["Tabela do wyliczenia opłaty produktowej"]
[]
["Wypełnij poniższą tabelę"]
[]
[0,1,null,null,null,2,3]
[null,"",null,null,null,null,"Masa wprowadzonych do obrotu opakowań wraz z produktami w tonach [Mg]:"]
[]
[null,null,null,null,null,"ogółem w 2018 r.","ogółem w 2021 r."]
[null,null,null,null,null,"Do pomocy de minimis nie trzeba wypełniać poniższej kolumny","wypełnij kolumnę poniżej"]
["L.p."]
[0,"opakowania razem",null,null,null,"",""]
[1,"opakowania jednorodne \nSUMA",null,null,null,0,""]
["1.1","opakowania z tworzyw sztucznych"]
["1.2","opakowania z aluminium"]
["1.3","opakowania ze stali, w tym z blachy stalowej"]
["1.4","opakowania z papieru i tektury"]
["1.5","opakowania ze szkła gospodarczego, poza ampułkami"]
["1.6","opakowania z drewna"]
["1.7","pozostałe opakowania"]
[2,"opakowania wielomateriałowe \n",null,null,null,0]
[3,"opakowania po środkach niebezpiecznych innych niż środki ochrony roślin                                                                                                                                                    SUMA ",null,null,null,0,""]
["3.1","opakowania z tworzyw sztucznych"]
["3.2","opakowania z aluminium"]
["3.3","opakowania ze stali, w tym z blachy stalowej"]
["3.4","opakowania z papieru i tektury"]
["3.5","opakowania ze szkła"]
["3.6","opakowania z drewna"]
["3.7","opakowania wielomateriałowe"]
["3.8","pozostałe opakowania"]
[4,"opakowania po środkach niebezpiecznych będących środkami ochrony roślin                                                                                                                                                         SUMA",null,null,null,0,""]
["4.1","opakowania z tworzyw sztucznych"]
["4.2","opakowania z aluminium"]
["4.3","opakowania ze stali, w tym z blachy stalowej"]
["4.4","opakowania z papieru i tektury"]
["4.5","opakowania ze szkła"]
["4.6","opakowania z drewna"]
["4.7","opakowania wielomateriałowe"]
["4.8","pozostałe opakowania"]
[]
[]
[]
[null,null,null,null,null,null,"Wypełnij poniższą tabelę",null,null,null,null,null,null,null,null,null,"\n\n"]
["Uwaga tabeli nie wypełnia się, jeżeli w roku poprzedzającym rok sprawozdawczy (2020 r.) firma nie wprowadzała na rynek produktów \nw opakowaniach"]
["Informacja o sposobie wykonania przez wprowadzającego produkty w opakowaniach obowiązku prowadzenia publicznych kampanii edukacyjnych \ni poniesione na ten cel koszty"]
[]
[]
["Lp.","Minimalna wysokość środków, które należy przeznaczyć na publiczne kampanie edukacyjne *)\n[zł]",null,null,null,null,"*)Wysokość środków przeznaczonych na kampanie musi stanowić co najmniej 2% wartości netto opakowań wprowadzonych do obrotu w poprzednim roku kalendarzowym (w roku 2020).",null,"Sposób wykorzystania środków przeznaczonych na publiczne  kampanie edukacyjne *)",null,null,null,null,"OBJAŚNIENIA:\nWypełnia wprowadzający produkty w opakowaniach, który samodzielnie wykonuje obowiązek prowadzenia publicznych kampanii edukacyjnych.\nWysokość środków przeznaczonych na kampanie musi stanowić co najmniej 2% wartości netto opakowań wprowadzonych do obrotu w poprzednim roku kalendarzowym."]
[]
[]
[1,2,null,null,null,null,null,null,5]
["1."]

{"sheet":"WYNIK1","index":1,"n_rows":48,"n_cols":36,"rows_kept":48,"cut":false,"hidden":true,"merged":[[31,34,31,36],[47,24,47,25],[48,24,54,24],[36,32,36,36],[37,32,37,34],[38,32,38,34],[39,32,39,34],[37,35,37,36],[38,35,38,36],[39,35,39,36],[40,33,40,34],[41,33,41,34],[42,33,42,34],[43,33,43,34],[44,33,44,34],[45,33,45,34],[46,33,46,34],[40,32,46,32],[40,35,40,36],[41,35,41,36],[42,35,42,36],[47,32,47,34],[47,35,47,36],[43,35,43,36],[44,35,44,36],[45,35,45,36],[40,1,40,3],[40,4,40,5],[40,6,40,10],[40,14,40,17],[46,35,46,36],[44,24,44,27],[45,24,45,25],[46,24,46,25],[15,1,15,6],[4,1,4,6],[14,1,14,6],[13,7,13,36],[27,28,27,29],[27,32,27,33],[28,28,28,29],[28,32,28,33],[25,28,25,29],[8,1,8,6],[8,32,8,33],[9,1,9,6],[9,32,9,33],[10,1,10,6],[10,32,10,33],[12,32,12,33],[12,28,12,29],[12,30,12,31],[5,18,11,18],[32,34,32,36],[26,28,26,29],[18,32,18,33],[22,28,22,29],[19,1,19,6],[19,28,19,29],[19,32,19,33],[22,32,22,33],[23,32,23,33],[23,27,23,29],[23,24,23,25],[23,10,23,22],[22,1,22,6],[23,1,23,6],[31,1,31,6],[22,34,22,36],[25,34,25,36],[26,34,26,36],[27,34,27,36],[28,34,28,36],[29,34,29,36],[30,34,30,36],[18,34,18,36],[19,34,19,36],[37,0,39,0],[37,1,39,3],[37,4,37,10],[37,14,39,17],[38,4,39,5],[38,6,39,10],[30,28,30,29],[30,32,30,33],[32,1,32,6],[32,28,32,29],[32,32,32,33],[33,0,33,6],[36,0,36,17],[31,28,31,29],[31,32,31,33],[33,28,33,36],[15,26,32,26],[15,28,15,29],[15,30,32,31],[15,32,15,33],[16,1,16,6],[16,28,16,29],[16,32,16,33],[17,1,17,6],[30,1,30,6],[26,32,26,33],[20,1,20,6],[20,28,20,29],[20,32,20,33],[21,1,21,6],[21,28,21,29],[21,32,21,33],[17,32,17,33],[18,1,18,6],[18,28,18,29],[24,1,24,6],[25,32,25,33],[26,1,26,6],[27,1,27,6],[28,1,28,6],[25,1,25,6],[3,7,3,36],[5,34,5,36],[6,34,6,36],[7,34,7,36],[8,34,8,36],[9,34,9,36],[10,34,10,36],[17,28,17,29],[29,1,29,6],[29,28,29,29],[29,32,29,33],[13,1,13,6],[3,1,3,6],[5,32,5,33],[6,32,6,33],[11,34,11,36],[12,34,12,36],[15,34,15,36],[16,34,16,36],[17,34,17,36],[20,34,20,36],[21,34,21,36],[12,1,12,6],[7,32,7,33],[0,0,0,35],[1,0,2,0],[1,1,2,6],[5,1,5,6],[5,22,11,22],[5,23,11,23],[5,25,11,25],[5,26,11,26],[5,28,11,29],[11,1,11,6],[1,10,2,10],[1,14,2,14],[1,17,2,17],[1,22,1,24],[1,25,1,27],[1,28,1,36],[2,28,2,29],[2,30,2,31],[2,32,2,33],[2,34,2,36],[5,30,11,31],[6,1,6,6],[7,1,7,6],[11,32,11,33]]}
["KALKULATOR OPŁATY PRODUKTOWEJ ZA ROK 2021 - OPAKOWANIA"]
["Lp.","Rodzaj opakowania, z którego powstał odpad",null,null,null,null,null,null,null,null,"Masa opakowań wprowadzonych do obrotu w 2020 r. w tonach [Mg]",null,null,null,"Masa opakowań wprowadzonych do obrotu w 2021 r. w tonach [Mg]",null,null,"Masa wprowadzonych do obrotu opakowań stanowiąca podstawę do obliczenia w tonach [Mg]",null,null,null,null,"Wymagany poziom [%]",null,null,"Osiągnięty poziom [%]",null,null,"Wysokość należnej opłaty produktowej [zł]:"]
[null,null,null,null,null,null,null,"Masa opakowań 2020 kg","Masa tony 2020","Masa zaokrąglona 2020",null,"Masa opakowań 2021 kg","MASA TONY 2021","Masa zaokrąglona 2021",null,"Podstawa kg","PODSTAWA TONY",null,"masa poddana odzyskowi kg","masa poddana recyklingowi kg","stawka","masa *stawka","odzysku","recyklingu ogółem","recyklingu","odzysku","recyklingu ogółem","recyklingu","odzysku",null,"recyklingu ogółem",null,"recyklingu",null,"recyklingu odpadów opakowaniowych pochodzących z gospodarstw domowych"]
[1,"Opakowania jednorodne"]
[null,"Suma",null,null,null,null,null,null,null,null,{"$f":"IF(OR(SUM(K6:K12)=0,SUM(K6:K12)=\"\"),\"\",SUM(K6:K12))","v":""},{"$f":"SUM(L6:L12)","v":0},{"$f":"SUM(M6:M12)","v":0},{"$f":"SUM(N6:N12)","v":0},{"$f":"IF(OR(SUM(O6:O12)=0,SUM(O6:O12)=\"\"),\"\",SUM(O6:O12))","v":""},{"$f":"Q5*1000","v":0},{"$f":"N5","v":0},{"$f":"IF(OR(SUM(R6:R12)=0,SUM(R6:R12)=\"\"),\"\",SUM(R6:R12))","v":""}]
["1.1","opakowania z tworzyw sztucznych",null,null,null,null,null,{"$f":"J6*1000","v":0},0,{"$f":"ROUND(FORMULARZ!F34,4)","v":0},{"$f":"IF(OR(I6=0,I6=\"\"),\"\",J6)","v":""},{"$f":"N6*1000","v":0},{"$f":"FORMULARZ!G32","v":0},{"$f":"ROUND(FORMULARZ!G32,4)","v":0},{"$f":"IF(OR(M6=0),\"\",N6)","v":""},{"$f":"Q6*1000","v":0},{"$f":"N6","v":0},{"$f":"IF(OR(Q6=\"\",Q6=0),\"\",Q6)","v":""},0,0,4.5,{"$f":"IF(OR(P6=0,P6=\"\"),0,P6*U6)","v":0},61,56,23.5,0,0,0,{"$f":"IF($P$5=0,0,ROUND($P$5*$U$6*0.61,2))","v":0},null,{"$f":"IF($P$5=0,0,ROUND($P$5*$U$6*0.56,2))","v":0},null,{"$f":"IF(P6=0,0,ROUND(P6*U6*(Y6/100),2))","v":0},null,0]
["1.2","opakowania z aluminium",null,null,null,null,null,{"$f":"J7*1000","v":0},0,{"$f":"ROUND(FORMULARZ!F35,4)","v":0},{"$f":"IF(OR(I7=0,I7=\"\"),\"\",I7)","v":""},{"$f":"N7*1000","v":0},{"$f":"FORMULARZ!G33","v":0},{"$f":"ROUND(FORMULARZ!G33,4)","v":0},{"$f":"IF(OR(M7=0),\"\",M7)","v":""},{"$f":"Q7*1000","v":0},{"$f":"N7","v":0},{"$f":"IF(OR(Q7=\"\",Q7=0),\"\",Q7)","v":""},null,0,4.5,{"$f":"IF(OR(P7=0,P7=\"\"),0,P7*U7)","v":0},null,null,51,null,null,0,null,null,null,null,{"$f":"IF(P7=0,0,ROUND(P7*U7*(Y7/100),2))","v":0},null,0]
["1.3","opakowania ze stali, w tym z blachy stalowej",null,null,null,null,null,0,0,{"$f":"ROUND(FORMULARZ!F36,4)","v":0},"",0,{"$f":"FORMULARZ!G34","v":0},{"$f":"ROUND(FORMULARZ!G34,4)","v":0},"",{"$f":"Q8*1000","v":0},0,"",null,0,4.5,0,null,null,51,null,null,0,null,null,null,null,0,null,0]
["1.4","opakowania z papieru i tektury",null,null,null,null,null,0,0,{"$f":"ROUND(FORMULARZ!F37,4)","v":0},"",0,{"$f":"FORMULARZ!G35","v":0},{"$f":"ROUND(FORMULARZ!G35,4)","v":0},"",0,0,"",null,0,4.5,0,null,null,61,null,null,0,null,null,null,null,0,null,0]
["1.5","opakowania ze szkła gospodarczego, poza ampułkami",null,null,null,null,null,0,0,{"$f":"ROUND(FORMULARZ!F38,4)","v":0},"",0,{"$f":"FORMULARZ!G36","v":0},{"$f":"ROUND(FORMULARZ!G36,4)","v":0},"",0,0,"",null,0,4.5,0,null,null,61,null,null,0,null,null,null,null,0,null,0]
["1.6","opakowania z drewna",null,null,null,null,null,0,0,{"$f":"ROUND(FORMULARZ!F39,4)","v":0},"",0,{"$f":"FORMULARZ!G37","v":0},{"$f":"ROUND(FORMULARZ!G37,4)","v":0},"",0,0,"",null,0,4.5,0,null,null,16,null,null,{"$f":"IF(OR(P11=\"\",P11=0),\"\",ROUND((T11/P11)*100,2))","v":""},null,null,null,null,0,null,0]
["1.7","pozostałe",null,null,null,null,null,0,0,{"$f":"ROUND(FORMULARZ!F40,4)","v":0},"",0,{"$f":"FORMULARZ!G38","v":0},{"$f":"ROUND(FORMULARZ!G38,4)","v":0},"",0,0,"",null,0,4.5,0,null,null,"-",null,null,0,null,null,null,null,0,null,0]
[2,"Opakowania wielomateriałowe ",null,null,null,null,null,0,0,{"$f":"ROUND(FORMULARZ!F41,4)","v":0},"",0,{"$f":"FORMULARZ!G39","v":0},{"$f":"ROUND(FORMULARZ!G39,4)","v":0},"",0,0,"",0,0,4.5,0,61,56,44,0,0,0,{"$f":"IF(P13=0,0,ROUND(P13*U13*(W13/100),2))","v":0},null,{"$f":"IF(P13=0,0,ROUND(P13*U13*(X13/100),2))","v":0},null,0,null,0]
[3,"Opakowania po środkach niebezpiecznych innych niż środki ochrony roślin"]
[null,"Suma",null,null,null,null,null,null,null,null,{"$f":"IF(OR(SUM(K16:K23)=0,SUM(K16:K23)=\"\"),\"\",SUM(K16:K23))","v":""},{"$f":"SUM(L16:L23)","v":0},{"$f":"SUM(M16:M23)","v":0},{"$f":"SUM(N16:N23)","v":0},{"$f":"IF(OR(SUM(O16:O23)=0,SUM(O16:O23)=\"\"),\"\",SUM(O16:O23))","v":""},{"$f":"Q15*1000","v":0},{"$f":"N15","v":0},{"$f":"IF(OR(SUM(R16:R23)=0,SUM(R16:R23)=\"\"),\"\",SUM(R16:R23))","v":""}]
["3.1","opakowania z tworzyw sztucznych",null,null,null,null,null,0,0,0,{"$f":"IF(OR(I16=0,I16=\"\"),\"\",I16)","v":""},{"$f":"N16*1000","v":0},{"$f":"FORMULARZ!G41","v":0},{"$f":"ROUND(FORMULARZ!G41,4)","v":0},{"$f":"IF(M16=0,\"\",M16)","v":""},{"$f":"Q16*1000","v":0},{"$f":"N16","v":0},{"$f":"IF(OR(Q16=\"\",Q16=0),\"\",Q16)","v":""},0,0,4.5,{"$f":"IF(OR(P16=0,P16=\"\"),0,P16*U16)","v":0},53,null,34,0,null,0,{"$f":"IF(P16=0,0,ROUND(P16*U16*(W16/100),2))","v":0},null,null,null,{"$f":"IF(P16=0,0,ROUND(P16*U16*(Y16/100),2))","v":0},null,0]
["3.2","opakowania z aluminium",null,null,null,null,null,0,0,0,{"$f":"IF(OR(I17=0,I17=\"\"),\"\",I17)","v":""},{"$f":"N17*1000","v":0},{"$f":"FORMULARZ!G42","v":0},{"$f":"ROUND(FORMULARZ!G42,4)","v":0},{"$f":"IF(M17=0,\"\",M17)","v":""},{"$f":"Q17*1000","v":0},{"$f":"N17","v":0},{"$f":"IF(OR(Q17=\"\",Q17=0),\"\",Q17)","v":""},0,0,4.5,{"$f":"IF(OR(P17=0,P17=\"\"),0,P17*U17)","v":0},53,null,34,0,null,0,{"$f":"IF(P17=0,0,ROUND(P17*U17*(W17/100),2))","v":0},null,null,null,{"$f":"IF(P17=0,0,ROUND(P17*U17*(Y17/100),2))","v":0},null,0]
["3.3","opakowania ze stali, w tym z blachy stalowej",null,null,null,null,null,0,0,0,"",0,{"$f":"FORMULARZ!G43","v":0},{"$f":"ROUND(FORMULARZ!G43,4)","v":0},"",0,0,"",0,0,4.5,0,53,null,34,0,null,0,0,null,null,null,0,null,0]
["3.4","opakowania z papieru i tektury",null,null,null,null,null,0,0,0,"",0,{"$f":"FORMULARZ!G44","v":0},{"$f":"ROUND(FORMULARZ!G44,4)","v":0},"",0,0,"",0,0,4.5,0,53,null,34,0,null,0,0,null,null,null,0,null,0]
["3.5","opakowania ze szkła gospodarczego, poza ampułkami",null,null,null,null,null,0,0,0,"",0,{"$f":"FORMULARZ!G45","v":0},{"$f":"ROUND(FORMULARZ!G45,4)","v":0},"",0,0,"",0,0,4.5,0,53,null,34,0,null,0,0,null,null,null,0,null,0]
["3.6","opakowania z drewna",null,null,null,null,null,0,0,0,"",0,{"$f":"FORMULARZ!G46","v":0},{"$f":"ROUND(FORMULARZ!G46,4)","v":0},"",0,0,"",0,0,4.5,0,53,null,34,0,null,0,0,null,null,null,0,null,0]
["3.7","opakowania wielomateriałowe",null,null,null,null,null,0,0,0,"",0,{"$f":"FORMULARZ!G47","v":0},{"$f":"ROUND(FORMULARZ!G47,4)","v":0},"",0,0,"",0,0,4.5,0,53,null,34,0,null,0,0,null,null,null,0,null,0]
["3.8","pozostałe opakowania",null,null,null,null,null,0,0,0,"",0,{"$f":"FORMULARZ!G48","v":0},{"$f":"ROUND(FORMULARZ!G48,4)","v":0},"",0,0,"",0,0,4.5,0,null,null,null,null,null,null,null,null,null,null,null,null,0]
["4","Opakowania po środkach niebezpiecznych będących środkami ochrony roślin",null,null,null,null,null,null,null,null,{"$f":"IF(H24=0,\"\",H24/1000)","v":""},null,null,null,null,null,null,null,null,null,null,null,null,null,null,null,null,null,null,null,null,null,{"$f":"IF(OR(V24=0,V24=\"\"),\"\",IF(AB24<=Z24,IF(AB24>=Y24,0,ROUND((AB24/100)*V24,2)),Arkusz3!$B$4))","v":""}]
[null,"Suma",null,null,null,null,null,null,null,null,{"$f":"IF(OR(SUM(K26:K33)=0,SUM(K26:K33)=\"\"),\"\",SUM(K26:K33))","v":""},{"$f":"SUM(L26:L33)","v":0},0,{"$f":"SUM(N26:N33)","v":0},{"$f":"IF(OR(SUM(O26:O32)=0,SUM(O26:O32)=\"\"),\"\",SUM(O26:O32))","v":""},{"$f":"Q25*1000","v":0},{"$f":"SUM(Q26:Q33)","v":0},{"$f":"IF(OR(SUM(R26:R32)=0,SUM(R26:R32)=\"\"),\"\",SUM(R26:R32))","v":""}]
["4.1","opakowania z tworzyw sztucznych",null,null,null,null,null,0,0,0,{"$f":"IF(OR(I26=0,I26=\"\"),\"\",I26)","v":""},{"$f":"N26*1000","v":0},{"$f":"FORMULARZ!G50","v":0},{"$f":"ROUND(FORMULARZ!G50,4)","v":0},{"$f":"IF(M26=0,\"\",M26)","v":""},{"$f":"Q26*1000","v":0},{"$f":"N26","v":0},"",0,0,4.5,{"$f":"IF(OR(P26=0,P26=\"\"),0,P26*U26)","v":0},53,null,34,0,null,0,{"$f":"IF(P26=0,0,ROUND(P26*U26*(W26/100),2))","v":0},null,null,null,{"$f":"IF(P26=0,0,ROUND(P26*U26*(Y26/100),2))","v":0},null,0]
["4.2","opakowania z aluminium",null,null,null,null,null,0,0,0,{"$f":"IF(OR(I27=0,I27=\"\"),\"\",I27)","v":""},{"$f":"N27*1000","v":0},{"$f":"FORMULARZ!G51","v":0},{"$f":"ROUND(FORMULARZ!G51,4)","v":0},{"$f":"IF(M27=0,\"\",M27)","v":""},{"$f":"Q27*1000","v":0},{"$f":"N27","v":0},"",0,0,4.5,{"$f":"IF(OR(P27=0,P27=\"\"),0,P27*U27)","v":0},53,null,34,0,null,0,{"$f":"IF(P27=0,0,ROUND(P27*U27*(W27/100),2))","v":0},null,null,null,{"$f":"IF(P27=0,0,ROUND(P27*U27*(Y27/100),2))","v":0},null,0]
["4.3","opakowania ze stali, w tym z blachy stalowej",null,null,null,null,null,0,0,0,"",0,{"$f":"FORMULARZ!G52","v":0},{"$f":"ROUND(FORMULARZ!G52,4)","v":0},"",0,0,"",0,0,4.5,0,53,null,34,0,null,0,0,null,null,null,0,null,0]
["4.4","opakowania z papieru i tektury",null,null,null,null,null,0,0,0,"",0,{"$f":"FORMULARZ!G53","v":0},{"$f":"ROUND(FORMULARZ!G53,4)","v":0},"",0,0,"",0,0,4.5,0,53,null,34,0,null,0,0,null,null,null,0,null,0]
["4.5","opakowania ze szkła gospodarczego, poza ampułkami",null,null,null,null,null,0,0,0,"",0,{"$f":"FORMULARZ!G54","v":0},{"$f":"ROUND(FORMULARZ!G54,4)","v":0},"",0,0,"",0,0,4.5,0,53,null,34,0,null,0,0,null,null,null,0,null,0]
["4.6","opakowania z drewna",null,null,null,null,null,0,0,0,"",0,{"$f":"FORMULARZ!G55","v":0},{"$f":"ROUND(FORMULARZ!G55,4)","v":0},"",0,0,"",0,0,4.5,0,53,null,34,0,null,0,0,null,null,null,0,null,0]
["4.7","opakowania wielomateriałowe",null,null,null,null,null,0,0,0,"",0,{"$f":"FORMULARZ!G56","v":0},{"$f":"ROUND(FORMULARZ!G56,4)","v":0},"",0,0,"",0,0,4.5,0,53,null,34,0,null,0,0,null,null,null,0,null,0]
["4.8","pozostałe opakowania",null,null,null,null,null,0,0,0,"",0,{"$f":"FORMULARZ!G57","v":0},{"$f":"ROUND(FORMULARZ!G57,4)","v":0},"",0,0,"",0,0,4.5,0,null,null,null,null,null,null,null,null,null,null,null,null,0]
["Łączna opłata produktowa",null,null,null,null,null,null,null,null,null,null,null,null,null,null,null,null,null,null,null,null,null,null,null,null,null,null,null,{"$f":"ROUND(SUM(AC6,AC13,AC16:AD22,AC26:AD32,AE6,AG6:AH13,AE13,AG16:AH23,AG26:AH33),0)","v":0}]
[null,null,null,null,null,null,null,null,null,null,{"$f":"SUM(K5,K13,K15,K25)","v":0}]
[]
["Obowiązek prowadzenia publicznych kampanii edukacyjnych",null,null,null,null,null,null,null,null,null,null,null,null,null,null,null,null,null,null,null,null,null,null,null,null,null,null,null,null,null,null,null,"Podsumowanie"]
["Lp.","Minimalna wysokość środków, które należy przeznaczyć na publiczne kampanie edukacyjne \n[zł]",null,null,"Wysokość środków przeznaczonych na publiczne kampanie edukacyjne [zł]",null,null,null,null,null,null,null,null,null,"Sposób wykorzystania środków przeznaczonych na publiczne  kampanie edukacyjne",null,null,null,null,null,null,null,null,null,null,null,null,null,null,null,null,null,"Wysokość należnej opłaty produktowej za:",null,null,"zł"]
[null,null,null,null,"we własnym zakresie",null,"przekazana na rachunek marszałka województwa",null,null,null,null,null,null,null,null,null,null,null,null,null,null,null,null,null,null,null,null,null,null,null,null,null,"Odzysk razem",null,null,{"$f":"SUM(AC6,AC13,AC16,AC17,AC18,AC19,AC20,AC21,AC22,AC26,AC27,AC28,AC29,AC30,AC31,AC32)","v":0}]
[null,null,null,null,null,null,null,null,null,null,null,null,null,null,null,null,null,null,null,null,null,null,null,null,null,null,null,null,null,null,null,null,"Recykling razem",null,null,{"$f":"SUM(AE6,AE13)","v":0}]
["1.",null,null,null,null,null,null,null,null,null,null,null,null,null,null,null,null,null,null,null,null,null,null,null,null,null,null,null,null,null,null,null,"Recykling","Tworzywa sztuczne",null,{"$f":"SUM(AG6,AG16,AG26)","v":0}]
[null,null,null,null,null,null,null,null,null,null,null,null,null,null,null,null,null,null,null,null,null,null,null,null,null,null,null,null,null,null,null,null,null,"Aluminium",null,0]
[null,null,null,null,null,null,null,null,null,null,null,null,null,null,null,null,null,null,null,null,null,null,null,null,null,null,null,null,null,null,null,null,null,"Stal, w tym blacha stalowa",null,0]
[null,null,null,null,null,null,null,null,null,null,null,null,null,null,null,null,null,null,null,null,null,null,null,null,null,null,null,null,null,null,null,null,null,"Papier i tektura",null,0]
[null,null,null,null,null,null,null,null,null,null,null,null,null,null,null,null,null,null,null,null,null,null,null,null,null,null,null,null,null,null,null,null,null,"Szkło",null,0]
[null,null,null,null,null,null,null,null,null,null,null,null,null,null,null,null,null,null,null,null,null,null,null,null,null,null,null,null,null,null,null,null,null,"Drewno",null,0]
[null,null,null,null,null,null,null,null,null,null,null,null,null,null,null,null,null,null,null,null,null,null,null,null,null,null,null,null,null,null,null,null,null,"Wielomateriałowe",null,{"$f":"SUM(AG13,AG22,AG32)","v":0}]
[null,null,null,null,null,null,null,null,null,null,null,null,null,null,null,null,null,null,null,null,null,null,null,null,null,null,null,null,null,null,null,null,"Łączna opłata produktowa:",null,null,{"$f":"ROUND(SUM(AJ39:AK47),0)","v":0}]

{"sheet":"Arkusz3","index":2,"n_rows":4,"n_cols":2,"rows_kept":4,"cut":false,"hidden":true,"merged":[]}
[]
[]
[null,"błąd- poziom recyklingu nie może być wyższy niż poziom odzysku"]
[null,"błąd: odzysk<recykling"]

{"sheet":"WYNIK","index":3,"n_rows":962,"n_cols":22,"rows_kept":962,"cut":false,"hidden":false,"merged":[[909,2,909,12],[920,2,920,12],[931,2,931,12],[618,2,618,12],[650,2,650,12],[682,2,682,12],[714,2,714,12],[746,2,746,12],[778,2,778,12],[810,2,810,12],[854,2,854,12],[865,2,865,12],[628,2,628,3],[628,6,628,8],[630,2,630,3],[630,6,630,8],[632,2,632,3],[632,6,632,8],[622,2,622,4],[622,6,622,8],[622,10,622,12],[624,2,624,4],[624,6,624,8],[624,10,624,12],[9,2,9,12],[213,2,213,12],[283,2,283,12],[320,2,320,12],[357,2,357,12],[394,2,394,12],[431,2,431,12],[468,2,468,12],[2,2,2,12],[257,5,257,6],[227,10,227,12],[234,2,234,3],[234,5,234,6],[234,8,234,10],[236,2,236,3],[236,5,236,6],[236,8,236,10],[289,2,289,4],[289,6,289,8],[289,10,289,12],[294,2,294,3],[294,6,294,8],[296,2,296,3],[296,6,296,8],[0,2,0,12],[266,5,266,6],[240,2,240,3],[240,5,240,6],[240,8,240,10],[242,2,242,3],[225,6,225,8],[225,10,225,12],[227,2,227,4],[227,6,227,8],[210,2,211,12],[219,2,219,4],[219,6,219,8],[219,10,219,12],[221,2,221,4],[221,6,221,8],[221,10,221,12],[225,2,225,4],[264,5,264,6],[242,5,242,6],[242,8,242,10],[249,5,249,6],[251,5,251,6],[255,5,255,6],[270,5,270,6],[272,5,272,6],[276,2,277,12],[287,2,287,4],[287,6,287,8],[287,10,287,12],[308,2,308,3],[308,6,308,7],[313,2,313,3],[313,6,313,7],[315,2,315,3],[315,6,315,7],[299,2,299,3],[299,6,299,8],[301,2,301,3],[301,6,301,8],[306,2,306,3],[306,6,306,7],[331,2,331,3],[331,6,331,8],[333,2,333,3],[333,6,333,8],[336,2,336,3],[336,6,336,8],[324,2,324,4],[324,6,324,8],[324,10,324,12],[326,2,326,4],[326,6,326,8],[326,10,326,12],[350,2,350,3],[350,6,350,7],[352,2,352,3],[352,6,352,7],[361,2,361,4],[361,6,361,8],[338,2,338,3],[338,6,338,8],[343,2,343,3],[343,6,343,7],[345,2,345,3],[345,6,345,7],[370,2,370,3],[370,6,370,8],[373,2,373,3],[373,6,373,8],[375,2,375,3],[375,6,375,8],[361,10,361,12],[363,2,363,4],[363,6,363,8],[363,10,363,12],[368,2,368,3],[368,6,368,8],[398,10,398,12],[400,2,400,4],[400,6,400,8],[400,10,400,12],[380,2,380,3],[380,6,380,7],[382,2,382,3],[382,6,382,7],[387,2,387,3],[387,6,387,7],[405,2,405,3],[405,6,405,8],[407,2,407,3],[407,6,407,8],[410,2,410,3],[410,6,410,8],[389,2,389,3],[389,6,389,7],[398,2,398,4],[398,6,398,8],[424,2,424,3],[424,6,424,7],[426,2,426,3],[426,6,426,7],[435,2,435,4],[435,6,435,8],[412,2,412,3],[412,6,412,8],[417,2,417,3],[417,6,417,7],[419,2,419,3],[419,6,419,7],[444,2,444,3],[444,6,444,8],[447,2,447,3],[447,6,447,8],[449,2,449,3],[449,6,449,8],[435,10,435,12],[437,2,437,4],[437,6,437,8],[437,10,437,12],[442,2,442,3],[442,6,442,8],[472,10,472,12],[474,2,474,4],[474,6,474,8],[474,10,474,12],[454,2,454,3],[454,6,454,7],[456,2,456,3],[456,6,456,7],[461,2,461,3],[461,6,461,7],[479,2,479,3],[479,6,479,8],[481,2,481,3],[481,6,481,8],[484,2,484,3],[484,6,484,8],[463,2,463,3],[463,6,463,7],[472,2,472,4],[472,6,472,8],[498,2,498,3],[498,6,498,7],[500,2,500,3],[500,6,500,7],[509,2,509,4],[509,6,509,8],[486,2,486,3],[486,6,486,8],[491,2,491,3],[491,6,491,7],[493,2,493,3],[493,6,493,7],[505,2,505,12],[518,2,518,3],[518,6,518,8],[521,2,521,3],[521,6,521,8],[523,2,523,3],[523,6,523,8],[509,10,509,12],[511,2,511,4],[511,6,511,8],[511,10,511,12],[516,2,516,3],[516,6,516,8],[537,2,537,3],[537,6,537,7],[546,2,546,4],[546,6,546,8],[546,10,546,12],[548,2,548,4],[548,6,548,8],[548,10,548,12],[528,2,528,3],[528,6,528,7],[530,2,530,3],[530,6,530,7],[535,2,535,3],[535,6,535,7],[542,2,542,12],[560,2,560,3],[560,6,560,8],[565,2,565,3],[565,6,565,7],[567,2,567,3],[567,6,567,7],[553,2,553,3],[553,6,553,8],[555,2,555,3],[555,6,555,8],[558,2,558,3],[558,6,558,8],[591,2,591,4],[591,6,591,8],[591,10,591,12],[596,2,596,3],[596,6,596,8],[598,2,598,3],[598,6,598,8],[572,2,572,3],[572,6,572,7],[574,2,574,3],[574,6,574,7],[578,2,579,12],[589,2,589,4],[589,6,589,8],[589,10,589,12],[585,2,585,12],[608,2,608,3],[608,6,608,7],[612,2,612,3],[612,6,612,7],[614,2,614,3],[614,6,614,7],[600,2,600,3],[600,6,600,8],[602,2,602,3],[602,6,602,8],[606,2,606,3],[606,6,606,7],[644,2,644,3],[644,6,644,7],[646,2,646,3],[646,6,646,7],[654,2,654,4],[654,6,654,8],[634,2,634,3],[634,6,634,8],[638,2,638,3],[638,6,638,7],[640,2,640,3],[640,6,640,7],[662,2,662,3],[662,6,662,8],[664,2,664,3],[664,6,664,8],[666,2,666,3],[666,6,666,8],[654,10,654,12],[656,2,656,4],[656,6,656,8],[656,10,656,12],[660,2,660,3],[660,6,660,8],[686,10,686,12],[688,2,688,4],[688,6,688,8],[688,10,688,12],[670,2,670,3],[670,6,670,7],[672,2,672,3],[672,6,672,7],[676,2,676,3],[676,6,676,7],[692,2,692,3],[692,6,692,8],[694,2,694,3],[694,6,694,8],[696,2,696,3],[696,6,696,8],[678,2,678,3],[678,6,678,7],[686,2,686,4],[686,6,686,8],[708,2,708,3],[708,6,708,7],[710,2,710,3],[710,6,710,7],[718,2,718,4],[718,6,718,8],[698,2,698,3],[698,6,698,8],[702,2,702,3],[702,6,702,7],[704,2,704,3],[704,6,704,7],[726,2,726,3],[726,6,726,8],[728,2,728,3],[728,6,728,8],[730,2,730,3],[730,6,730,8],[718,10,718,12],[720,2,720,4],[720,6,720,8],[720,10,720,12],[724,2,724,3],[724,6,724,8],[750,10,750,12],[752,2,752,4],[752,6,752,8],[752,10,752,12],[734,2,734,3],[734,6,734,7],[736,2,736,3],[736,6,736,7],[740,2,740,3],[740,6,740,7],[756,2,756,3],[756,6,756,8],[758,2,758,3],[758,6,758,8],[760,2,760,3],[760,6,760,8],[742,2,742,3],[742,6,742,7],[750,2,750,4],[750,6,750,8],[772,2,772,3],[772,6,772,7],[774,2,774,3],[774,6,774,7],[782,2,782,4],[782,6,782,8],[762,2,762,3],[762,6,762,8],[766,2,766,3],[766,6,766,7],[768,2,768,3],[768,6,768,7],[790,2,790,3],[790,6,790,8],[792,2,792,3],[792,6,792,8],[794,2,794,3],[794,6,794,8],[782,10,782,12],[784,2,784,4],[784,6,784,8],[784,10,784,12],[788,2,788,3],[788,6,788,8],[814,10,814,12],[816,2,816,4],[816,6,816,8],[816,10,816,12],[798,2,798,3],[798,6,798,7],[800,2,800,3],[800,6,800,7],[804,2,804,3],[804,6,804,7],[820,2,820,3],[820,6,820,8],[822,2,822,3],[822,6,822,8],[824,2,824,3],[824,6,824,8],[806,2,806,3],[806,6,806,7],[814,2,814,4],[814,6,814,8],[836,2,836,3],[836,6,836,7],[838,2,838,3],[838,6,838,7],[848,2,848,3],[848,5,848,6],[826,2,826,3],[826,6,826,8],[830,2,830,3],[830,6,830,7],[832,2,832,3],[832,6,832,7],[867,2,867,6],[869,2,870,3],[869,6,870,8],[872,2,872,3],[872,6,872,8],[878,2,878,6],[850,2,850,6],[856,2,856,6],[858,2,859,3],[858,6,859,8],[861,2,861,3],[861,6,861,8],[876,2,876,12],[894,2,894,3],[894,6,894,8],[900,2,900,6],[902,2,903,3],[902,6,903,8],[905,2,905,3],[905,6,905,8],[880,2,881,3],[880,6,881,8],[883,2,883,3],[883,6,883,8],[889,2,889,6],[891,2,892,3],[891,6,892,8],[887,2,887,12],[898,2,898,12],[927,6,927,8],[933,2,933,6],[935,2,936,3],[935,6,936,8],[911,2,911,6],[913,2,914,3],[913,6,914,8],[916,2,916,3],[916,6,916,8],[922,2,922,6],[963,2,963,10],[5,2,5,12],[13,2,13,4],[13,6,13,8],[13,10,13,12],[15,2,15,4],[15,6,15,8],[15,10,15,12],[21,2,21,4],[21,6,21,8],[951,2,951,10],[953,2,953,11],[955,2,955,10],[957,2,957,11],[959,2,959,10],[961,2,961,11],[938,2,938,3],[938,6,938,8],[942,2,942,5],[942,6,942,8],[949,2,949,11],[924,2,925,3],[924,6,925,8],[927,2,927,3],[21,10,21,12],[23,2,23,4],[23,6,23,8],[23,10,23,12],[27,2,27,4],[27,6,27,8],[27,10,27,12],[29,2,29,4],[29,6,29,8],[29,10,29,12],[39,2,39,4],[39,6,39,8],[39,10,39,12],[41,2,41,4],[41,6,41,8],[41,10,41,12],[33,2,33,4],[33,6,33,8],[33,10,33,12],[35,2,35,4],[35,6,35,8],[35,10,35,12],[51,2,51,4],[51,6,51,8],[51,10,51,12],[53,2,53,4],[53,6,53,8],[53,10,53,12],[45,2,45,4],[45,6,45,8],[45,10,45,12],[47,2,47,4],[47,6,47,8],[47,10,47,12],[72,2,72,3],[72,6,72,8],[74,2,74,3],[74,6,74,8],[78,2,78,3],[78,6,78,8],[60,2,60,3],[60,6,60,8],[62,2,62,3],[62,6,62,8],[66,2,66,3],[68,2,68,3],[90,2,90,3],[90,6,90,8],[92,2,92,3],[92,6,92,8],[96,2,96,3],[96,6,96,8],[80,2,80,3],[80,6,80,8],[84,2,84,3],[84,6,84,8],[86,2,86,3],[86,6,86,8],[123,2,123,3],[123,6,123,8],[125,2,125,3],[125,6,125,8],[129,2,129,3],[129,6,129,8],[98,2,98,3],[98,6,98,8],[102,2,102,3],[102,6,102,8],[104,2,104,3],[104,6,104,8],[155,6,155,8],[141,2,141,3],[141,6,141,8],[143,2,143,3],[143,6,143,8],[147,2,147,3],[147,6,147,8],[131,2,131,3],[131,6,131,8],[135,2,135,3],[135,6,135,8],[137,2,137,3],[137,6,137,8],[578,15,579,15],[841,2,842,12],[841,15,842,15],[945,2,946,12],[945,15,946,15],[4,2,4,12],[275,2,275,12],[577,2,577,12],[210,15,211,15],[276,15,277,15],[200,2,200,3],[200,6,200,8],[204,2,204,3],[204,6,204,8],[206,2,206,3],[206,6,206,8],[192,2,192,3],[192,6,192,8],[194,2,194,3],[194,6,194,8],[198,2,198,3],[198,6,198,8],[182,2,182,3],[182,6,182,8],[947,2,947,12],[7,2,7,7],[56,2,56,8],[107,2,107,7],[158,2,158,7],[215,2,215,7],[230,2,230,8],[245,2,245,7],[260,2,260,7],[186,2,186,3],[186,6,186,8],[188,2,188,3],[188,6,188,8],[174,2,174,3],[174,6,174,8],[176,2,176,3],[176,6,176,8],[180,2,180,3],[180,6,180,8],[149,2,149,3],[149,6,149,8],[153,2,153,3],[153,6,153,8],[155,2,155,3]]}
[null,null,"KALKULATOR POMOCY DE MINIMIS ZA ROK 2021 - OPAKOWANIA"]
[]
[null,null,"WYPEŁNIJ TABELE PODŚWIETLONE NA ZIELONO"]
[]
[]
[null,null,"Dział II Tabela 5.1. Informacja o masie opakowań, w których zostały wprowadzone do obrotu produkty, masie poddanych odzyskowi i recyklingowi odpadów opakowaniowych oraz osiągniętych poziomach odzysku i recyklingu odpadów opakowaniowych",null,null,null,null,null,null,null,null,null,null,null,null,null,null,{"$f":"G16","v":0}]
[]
[null,null,"1. MASA WPROWADZONYCH DO OBROTU OPAKOWAŃ"]
[]
[null,null,"Przedsiębiorca korzysta ze zwolnienia, o którym mowa w art. 6 ust. 3 ustawy z dnia 13 czerwca 2013 r.o gospodarce opakowaniami i odpadami opakowaniowymi (Dz.U. z 2020 r., poz. 1114 z późn. zm.)"]
[]
[null,null,"A. Podlegających obowiązkowi odzysku ogółem i recyklingu ogółem:"]
[]
[null,null,"w danym roku kalendarzowym w tonach [Mg]:",null,null,null,"w roku poprzedzającym dany rok kalendarzowy w tonach [Mg]:",null,null,null,"stanowiąca podstawę do obliczenia osiągniętego poziomu w tonach [Mg]:"]
[]
[null,null,{"$f":"IF(OR(WYNIK1!$O$5=0,WYNIK1!$O$5=\"\"),0,WYNIK1!$O$5)","v":0}]
[]
[null,null,"B. Podlegających obowiązkowi recyklingu:"]
[]
[null,null,"1. TWORZYWA SZTUCZNE"]
[]
[null,null,"w danym roku kalendarzowym w tonach [Mg]:",null,null,null,"w roku poprzedzającym dany rok kalendarzowy w tonach [Mg]:",null,null,null,"stanowiąca podstawę do obliczenia osiągniętego poziomu w tonach [Mg]:"]
[]
[null,null,{"$f":"IF(OR(WYNIK1!$O$6=0,WYNIK1!$O$6=\"\"),0,WYNIK1!$O$6)","v":0}]
[]
[null,null,"2. ALUMINIUM"]
[]
[null,null,"w danym roku kalendarzowym w tonach [Mg]:",null,null,null,"w roku poprzedzającym dany rok kalendarzowy w tonach [Mg]:",null,null,null,"stanowiąca podstawę do obliczenia osiągniętego poziomu w tonach [Mg]:"]
[]
[null,null,{"$f":"IF(OR(WYNIK1!$O$7=0,WYNIK1!$O$7=\"\"),0,WYNIK1!$O$7)","v":0}]
[]
[null,null,"3. METALE- STAL, W TYM BLACHA STALOWA, ORAZ POZOSTAŁE METALE"]
[]
[null,null,"w danym roku kalendarzowym w tonach [Mg]:",null,null,null,"w roku poprzedzającym dany rok kalendarzowy w tonach [Mg]:",null,null,null,"stanowiąca podstawę do obliczenia osiągniętego poziomu w tonach [Mg]:"]
[]
[null,null,{"$f":"IF(OR(WYNIK1!$O$8=0,WYNIK1!$O$8=\"\"),0,WYNIK1!$O$8)","v":0}]
[]
[null,null,"4. PAPIER I TEKTURA"]
[]
[null,null,"w danym roku kalendarzowym w tonach [Mg]:",null,null,null,"w roku poprzedzającym dany rok kalendarzowy w tonach [Mg]:",null,null,null,"stanowiąca podstawę do obliczenia osiągniętego poziomu w tonach [Mg]:"]
[]
[null,null,{"$f":"IF(OR(WYNIK1!$O$9=0,WYNIK1!$O$9=\"\"),0,WYNIK1!$O$9)","v":0}]
[]
[null,null,"5. SZKŁO"]
[]
[null,null,"w danym roku kalendarzowym w tonach [Mg]:",null,null,null,"w roku poprzedzającym dany rok kalendarzowy w tonach [Mg]:",null,null,null,"stanowiąca podstawę do obliczenia osiągniętego poziomu w tonach [Mg]:"]
[]
[null,null,{"$f":"IF(OR(WYNIK1!$O$10=0,WYNIK1!$O$10=\"\"),0,WYNIK1!$O$10)","v":0}]
[]
[null,null,"6. DREWNO"]
[]
[null,null,"w danym roku kalendarzowym w tonach [Mg]:",null,null,null,"w roku poprzedzającym dany rok kalendarzowy w tonach [Mg]:",null,null,null,"stanowiąca podstawę do obliczenia osiągniętego poziomu w tonach [Mg]:"]
[]
[null,null,{"$f":"IF(OR(WYNIK1!$O$11=0,WYNIK1!$O$11=\"\"),0,WYNIK1!$O$11)","v":0}]
[]
[]
[null,null,"2. MASA ODPADÓW PODDANYCH ODZYSKOWI ORAZ RECYKLINGOWI"]
[]
[null,null,"A. Masa odpadów poddanych odzyskowi:"]
[]
[null,null,"ogółem w tonach [Mg]:",null,null,null,"w tym pochodzących z gosodarstw domowych w tonach [Mg]:"]
[]
[]
[]
[null,null,"B. Masa odpadów poddanych recyklingowi:"]
[]
[null,null,"ogółem w tonach [Mg]:"]
[]
[]
[]
[null,null,"1. TWORZYWA SZTUCZNE"]
[]
[null,null,"według rodzaju materiału w tonach [Mg]:",null,null,null,"w tym pochodzących z gosodarstw domowych w tonach [Mg]:"]
[]
[]
[]
[null,null,"2. ALUMINIUM"]
[]
[null,null,"według rodzaju materiału w tonach [Mg]:",null,null,null,"w tym pochodzących z gosodarstw domowych w tonach [Mg]:"]
[]
[]
[]
[null,null,"3. METALE- STAL, W TYM BLACHA STALOWA, ORAZ POZOSTAŁE METALE"]
[]
[null,null,"według rodzaju materiału w tonach [Mg]:",null,null,null,"w tym pochodzących z gosodarstw domowych w tonach [Mg]:"]
[]
[]
[]
[null,null,"4. PAPIER I TEKTURA"]
[]
[null,null,"według rodzaju materiału w tonach [Mg]:",null,null,null,"w tym pochodzących z gosodarstw domowych w tonach [Mg]:"]
[]
[]
[]
[null,null,"5. SZKŁO"]
[]
[null,null,"według rodzaju materiału w tonach [Mg]:",null,null,null,"w tym pochodzących z gosodarstw domowych w tonach [Mg]:"]
[]
[]
[]
[null,null,"6. DREWNO"]
[]
[null,null,"według rodzaju materiału w tonach [Mg]:",null,null,null,"w tym pochodzących z gosodarstw domowych w tonach [Mg]:"]
[]
[]
[]
[]
[null,null,"3. WYMAGANY POZIOM ODZYSKU ORAZ RECYKLINGU"]
[]
[null,null,"A. Wymagany poziom odzysku:"]
[]
[null,null,"ogółem [%]:"]
[]
[]
[]
[null,null,"B. Wymagany poziom recyklingu:"]
[]
[null,null,"ogółem [%]:"]
[]
[]
[]
[null,null,"1. TWORZYWA SZTUCZNE"]
[]
[null,null,"według rodzaju materiału [%]:",null,null,null,"w tym pochodzących z gosodarstw domowych w tonach [%]:"]
[]
[]
[]
[null,null,"2. ALUMINIUM"]
[]
[null,null,"według rodzaju materiału [%]:",null,null,null,"w tym pochodzących z gosodarstw domowych w tonach [%]:"]
[]
[]
[]
[null,null,"3. METALE- STAL, W TYM BLACHA STALOWA, ORAZ POZOSTAŁE METALE"]
[]
[null,null,"według rodzaju materiału [%]:",null,null,null,"w tym pochodzących z gosodarstw domowych w tonach [%]:"]
[]
[]
[]
[null,null,"4. PAPIER I TEKTURA"]
[]
[null,null,"według rodzaju materiału [%]:",null,null,null,"w tym pochodzących z gosodarstw domowych w tonach [%]:"]
[]
[]
[]
[null,null,"5. SZKŁO"]
[]
[null,null,"według rodzaju materiału [%]:",null,null,null,"w tym pochodzących z gosodarstw domowych w tonach [%]:"]
[]
[]
[]
[null,null,"6. DREWNO"]
[]
[null,null,"według rodzaju materiału [%]:",null,null,null,"w tym pochodzących z gosodarstw domowych w tonach [%]:"]
[]
[]
[]
[]
[null,null,"4. OSIĄGNIĘTY POZIOM ODZYSKU ORAZ RECYKLINGU"]
[]
[null,null,"A. Osiągnięty poziom odzysku:"]
[]
[null,null,"ogółem [%]:"]
[]
[]
[]
[null,null,"B. Osiągnięty poziom recyklingu:"]
[]
[null,null,"ogółem [%]:"]
[]
[]
[]
[null,null,"1. TWORZYWA SZTUCZNE"]
[]
[null,null,"według rodzaju materiału [%]:",null,null,null,"w tym pochodzących z gosodarstw domowych w tonach [%]:"]
[]
[]
[]
[null,null,"2. ALUMINIUM"]
[]
[null,null,"według rodzaju materiału [%]:",null,null,null,"w tym pochodzących z gosodarstw domowych w tonach [%]:"]
[]
[]
[]
[null,null,"3. METALE- STAL, W TYM BLACHA STALOWA, ORAZ POZOSTAŁE METALE"]
[]
[null,null,"według rodzaju materiału [%]:",null,null,null,"w tym pochodzących z gosodarstw domowych w tonach [%]:"]
[]
[]
[]
[null,null,"4. PAPIER I TEKTURA"]
[]
[null,null,"według rodzaju materiału [%]:",null,null,null,"w tym pochodzących z gosodarstw domowych w tonach [%]:"]
[]
[]
[]
[null,null,"5. SZKŁO"]
[]
[null,null,"według rodzaju materiału [%]:",null,null,null,"w tym pochodzących z gosodarstw domowych w tonach [%]:"]
[]
[]
[]
[null,null,"6. DREWNO"]
[]
[null,null,"według rodzaju materiału [%]:",null,null,null,"w tym pochodzących z gosodarstw domowych w tonach [%]:"]
[]
[]
[]
[]
[]
[null,null,"Dział II Tabela 5.2. Informacja o masie opakowań wielomateriałowych, w których zostały wprowadzone do obrotu produkty, masie poddanych odzyskowi i recyklingowi odpadów po opakowaniach wielomateriałowych oraz osiągniętych poziomach odzysku i recyklingu odpadów po tych opakowaniach"]
[null,null,null,null,null,null,null,null,null,null,null,null,null,null,null,null,null,{"$f":"SUM(G222,G228)","v":0}]
[]
[null,null,"Przedsiębiorca korzysta ze zwolnienia, o którym mowa w art. 6 ust. 3 ustawy z dnia 13 czerwca 2013 r.o gospodarce opakowaniami i odpadami opakowaniowymi (Dz.U. z 2020 r., poz. 1114 z późn. zm.)"]
[]
[null,null,"1. MASA WPROWADZONYCH DO OBROTU OPAKOWAŃ"]
[]
[null,null,"A. Podlegających obowiązkowi odzysku ogółem i recyklingu ogółem:"]
[]
[null,null,"w danym roku kalendarzowym w tonach [Mg]:",null,null,null,"w roku poprzedzającym dany rok kalendarzowy w tonach [Mg]:",null,null,null,"stanowiąca podstawę do obliczenia osiągniętego poziomu w tonach [Mg]:"]
[]
[null,null,{"$f":"IF(OR(WYNIK1!$O$13=0,WYNIK1!$O$13=\"\"),0,WYNIK1!$O$13)","v":0}]
[]
[null,null,"B. Podlegających obowiązkowi recyklingu:"]
[]
[null,null,"w danym roku kalendarzowym w tonach [Mg]:",null,null,null,"w roku poprzedzającym dany rok kalendarzowy w tonach [Mg]:",null,null,null,"stanowiąca podstawę do obliczenia osiągniętego poziomu w tonach [Mg]:"]
[]
[null,null,{"$f":"IF(OR(WYNIK1!$O$13=0,WYNIK1!$O$13=\"\"),0,WYNIK1!$O$13)","v":0}]
[]
[]
[null,null,"2. MASA ODPADÓW PODDANYCH ODZYSKOWI ORAZ RECYKLINGOWI"]
[]
[null,null,"A. Masa odpadów poddanych odzyskowi:"]
[]
[null,null,"ogółem w tonach [Mg]:",null,null,"według rodzaju materiału w tonach [Mg]:",null,null,"w tym pochodzących z gosodarstw domowych w tonach [Mg]:"]
[]
[]
[]
[null,null,"B. Masa odpadów poddanych recyklingowi:"]
[]
[null,null,"ogółem w tonach [Mg]:",null,null,"według rodzaju materiału w tonach [Mg]:",null,null,"w tym pochodzących z gosodarstw domowych w tonach [Mg]:"]
[]
[]
[]
[]
[null,null,"3. WYMAGANY POZIOM ODZYSKU ORAZ RECYKLINGU"]
[]
[null,null,"A. Wymagany poziom odzysku:"]
[]
[null,null,"ogółem [%]:",null,null,"według rodzaju materiału [%]:"]
[]
[]
[]
[null,null,"B. Wymagany poziom recyklingu:"]
[]
[null,null,"ogółem [%]:",null,null,"według rodzaju materiału [%]:"]
[]
[]
[]
[]
[null,null,"4. OSIĄGNIĘTY POZIOM ODZYSKU ORAZ RECYKLINGU"]
[]
[null,null,"A. Osiągnięty poziom odzysku:"]
[]
[null,null,"ogółem [%]:",null,null,"według rodzaju materiału [%]:"]
[]
[]
[]
[null,null,"B. Osiągnięty poziom recyklingu:"]
[]
[null,null,"ogółem [%]:",null,null,"według rodzaju materiału [%]:"]
[]
[]
[]
[]
[]
[null,null,"Dział II Tabela 5.3.  Informacja o opakowaniach po środkach niebezpiecznych innych niż środki ochrony roślin"]
[null,null,null,null,null,null,null,null,null,null,null,null,null,null,null,null,null,{"$f":"SUM(G290,G327,G364,G401,G438,G475,G512,G549)","v":0}]
[]
[null,null,"Rodzaj opakowania, z którego powstał odpad"]
[]
[null,null,"1. TWORZYWA SZTUCZNE",null,null,null,null,null,null,null,null,null,null,null,{"$f":"IF(C290=0,\"NIE\",\"TAK\")","v":"NIE"}]
[]
[null,null,"Przedsiębiorca korzysta ze zwolnienia, o którym mowa w art. 6 ust. 3 ustawy z dnia 13 czerwca 2013 r.o gospodarce opakowaniami i odpadami opakowaniowymi (Dz.U. z 2020 r., poz. 1114 z późn. zm.)"]
[]
[null,null,"Masa wprowadzonych do obrotu opakowań podlegających obowiązkowi odzysku i recyklingu"]
[]
[null,null,"w danym roku kalendarzowym w tonach [Mg]:",null,null,null,"w roku poprzedzającym dany rok kalendarzowy w tonach [Mg]:",null,null,null,"stanowiąca podstawę do obliczenia osiągniętego poziomu w tonach [Mg]:"]
[]
[null,null,{"$f":"IF(OR(WYNIK1!$O$16=0,WYNIK1!$O$16=\"\"),0,WYNIK1!$O$16)","v":0}]
[]
[]
[null,null,"Masa odpadów poddanych"]
[]
[null,null,"odzyskowi według rodzaju materiału w tonach [Mg]:",null,null,null,"odzyskowi w tym pochodzących z gosodarstw domowych w tonach [Mg]:"]
[]
[]
[]
[]
[null,null,"recyklingowi według rodzaju materiału w tonach [Mg]:",null,null,null,"recyklingowi w tym pochodzących z gosodarstw domowych w tonach [Mg]:"]
[]
[]
[]
[]
[null,null,"Wymagany poziom"]
[]
[null,null,"odzysku według rodzaju materiału w tonach [Mg]:",null,null,null,"recyklingu według rodzaju materiału w tonach [Mg]:"]
[]
[]
[]
[]
[null,null,"Osiągnięty poziom"]
[]
[null,null,"odzysku według rodzaju materiału w tonach [Mg]:",null,null,null,"recyklingu według rodzaju materiału w tonach [Mg]:"]
[]
[]
[]
[]
[null,null,"2. ALUMINIUM",null,null,null,null,null,null,null,null,null,null,null,{"$f":"IF(C327=0,\"NIE\",\"TAK\")","v":"NIE"}]
[]
[null,null,"Przedsiębiorca korzysta ze zwolnienia, o którym mowa w art. 6 ust. 3 ustawy z dnia 13 czerwca 2013 r.o gospodarce opakowaniami i odpadami opakowaniowymi (Dz.U. z 2020 r., poz. 1114 z późn. zm.)"]
[]
[null,null,"Masa wprowadzonych do obrotu opakowań podlegających obowiązkowi odzysku i recyklingu"]
[]
[null,null,"w danym roku kalendarzowym w tonach [Mg]:",null,null,null,"w roku poprzedzającym dany rok kalendarzowy w tonach [Mg]:",null,null,null,"stanowiąca podstawę do obliczenia osiągniętego poziomu w tonach [Mg]:"]
[]
[null,null,{"$f":"IF(OR(WYNIK1!$O$17=0,WYNIK1!$O$17=\"\"),0,WYNIK1!$O$17)","v":0}]
[]
[]
[null,null,"Masa odpadów poddanych"]
[]
[null,null,"odzyskowi według rodzaju materiału w tonach [Mg]:",null,null,null,"odzyskowi w tym pochodzących z gosodarstw domowych w tonach [Mg]:"]
[]
[]
[]
[]
[null,null,"recyklingowi według rodzaju materiału w tonach [Mg]:",null,null,null,"recyklingowi w tym pochodzących z gosodarstw domowych w tonach [Mg]:"]
[]
[]
[]
[]
[null,null,"Wymagany poziom"]
[]
[null,null,"odzysku według rodzaju materiału w tonach [Mg]:",null,null,null,"recyklingu według rodzaju materiału w tonach [Mg]:"]
[]
[]
[]
[]
[null,null,"Osiągnięty poziom"]
[]
[null,null,"odzysku według rodzaju materiału w tonach [Mg]:",null,null,null,"recyklingu według rodzaju materiału w tonach [Mg]:"]
[]
[]
[]
[]
[null,null,"3. METALE- STAL, W TYM BLACHA STALOWA, ORAZ POZOSTAŁE METALE",null,null,null,null,null,null,null,null,null,null,null,{"$f":"IF(C364=0,\"NIE\",\"TAK\")","v":"NIE"}]
[]
[null,null,"Przedsiębiorca korzysta ze zwolnienia, o którym mowa w art. 6 ust. 3 ustawy z dnia 13 czerwca 2013 r.o gospodarce opakowaniami i odpadami opakowaniowymi (Dz.U. z 2020 r., poz. 1114 z późn. zm.)"]
[]
[null,null,"Masa wprowadzonych do obrotu opakowań podlegających obowiązkowi odzysku i recyklingu"]
[]
[null,null,"w danym roku kalendarzowym w tonach [Mg]:",null,null,null,"w roku poprzedzającym dany rok kalendarzowy w tonach [Mg]:",null,null,null,"stanowiąca podstawę do obliczenia osiągniętego poziomu w tonach [Mg]:"]
[]
[null,null,{"$f":"IF(OR(WYNIK1!$O$18=0,WYNIK1!$O$18=\"\"),0,WYNIK1!$O$18)","v":0}]
[]
[]
[null,null,"Masa odpadów poddanych"]
[]
[null,null,"odzyskowi według rodzaju materiału w tonach [Mg]:",null,null,null,"odzyskowi w tym pochodzących z gosodarstw domowych w tonach [Mg]:"]
[]
[]
[]
[]
[null,null,"recyklingowi według rodzaju materiału w tonach [Mg]:",null,null,null,"recyklingowi w tym pochodzących z gosodarstw domowych w tonach [Mg]:"]
[]
[]
[]
[]
[null,null,"Wymagany poziom"]
[]
[null,null,"odzysku według rodzaju materiału w tonach [Mg]:",null,null,null,"recyklingu według rodzaju materiału w tonach [Mg]:"]
[]
[]
[]
[]
[null,null,"Osiągnięty poziom"]
[]
[null,null,"odzysku według rodzaju materiału w tonach [Mg]:",null,null,null,"recyklingu według rodzaju materiału w tonach [Mg]:"]
[]
[]
[]
[]
[null,null,"4. PAPIER I TEKTURA",null,null,null,null,null,null,null,null,null,null,null,{"$f":"IF(C401=0,\"NIE\",\"TAK\")","v":"NIE"}]
[]
[null,null,"Przedsiębiorca korzysta ze zwolnienia, o którym mowa w art. 6 ust. 3 ustawy z dnia 13 czerwca 2013 r.o gospodarce opakowaniami i odpadami opakowaniowymi (Dz.U. z 2020 r., poz. 1114 z późn. zm.)"]
[]
[null,null,"Masa wprowadzonych do obrotu opakowań podlegających obowiązkowi odzysku i recyklingu"]
[]
[null,null,"w danym roku kalendarzowym w tonach [Mg]:",null,null,null,"w roku poprzedzającym dany rok kalendarzowy w tonach [Mg]:",null,null,null,"stanowiąca podstawę do obliczenia osiągniętego poziomu w tonach [Mg]:"]
[]
[null,null,{"$f":"IF(OR(WYNIK1!$O$19=0,WYNIK1!$O$19=\"\"),0,WYNIK1!$O$19)","v":0}]
[]
[]
[null,null,"Masa odpadów poddanych"]
[]
[null,null,"odzyskowi według rodzaju materiału w tonach [Mg]:",null,null,null,"odzyskowi w tym pochodzących z gosodarstw domowych w tonach [Mg]:"]
[]
[]
[]
[]
[null,null,"recyklingowi według rodzaju materiału w tonach [Mg]:",null,null,null,"recyklingowi w tym pochodzących z gosodarstw domowych w tonach [Mg]:"]
[]
[]
[]
[]
[null,null,"Wymagany poziom"]
[]
[null,null,"odzysku według rodzaju materiału w tonach [Mg]:",null,null,null,"recyklingu według rodzaju materiału w tonach [Mg]:"]
[]
[]
[]
[]
[null,null,"Osiągnięty poziom"]
[]
[null,null,"odzysku według rodzaju materiału w tonach [Mg]:",null,null,null,"recyklingu według rodzaju materiału w tonach [Mg]:"]
[]
[]
[]
[]
[null,null,"5. SZKŁO",null,null,null,null,null,null,null,null,null,null,null,{"$f":"IF(C438=0,\"NIE\",\"TAK\")","v":"NIE"}]
[]
[null,null,"Przedsiębiorca korzysta ze zwolnienia, o którym mowa w art. 6 ust. 3 ustawy z dnia 13 czerwca 2013 r.o gospodarce opakowaniami i odpadami opakowaniowymi (Dz.U. z 2020 r., poz. 1114 z późn. zm.)"]
[]
[null,null,"Masa wprowadzonych do obrotu opakowań podlegających obowiązkowi odzysku i recyklingu"]
[]
[null,null,"w danym roku kalendarzowym w tonach [Mg]:",null,null,null,"w roku poprzedzającym dany rok kalendarzowy w tonach [Mg]:",null,null,null,"stanowiąca podstawę do obliczenia osiągniętego poziomu w tonach [Mg]:"]
[]
[null,null,{"$f":"IF(OR(WYNIK1!$O$20=0,WYNIK1!$O$20=\"\"),0,WYNIK1!$O$20)","v":0}]
[]
[]
[null,null,"Masa odpadów poddanych"]
[]
[null,null,"odzyskowi według rodzaju materiału w tonach [Mg]:",null,null,null,"odzyskowi w tym pochodzących z gosodarstw domowych w tonach [Mg]:"]
[]
[]
[]
[]
[null,null,"recyklingowi według rodzaju materiału w tonach [Mg]:",null,null,null,"recyklingowi w tym pochodzących z gosodarstw domowych w tonach [Mg]:"]
[]
[]
[]
[]
[null,null,"Wymagany poziom"]
[]
[null,null,"odzysku według rodzaju materiału w tonach [Mg]:",null,null,null,"recyklingu według rodzaju materiału w tonach [Mg]:"]
[]
[]
[]
[]
[null,null,"Osiągnięty poziom"]
[]
[null,null,"odzysku według rodzaju materiału w tonach [Mg]:",null,null,null,"recyklingu według rodzaju materiału w tonach [Mg]:"]
[]
[]
[]
[]
[null,null,"6. DREWNO",null,null,null,null,null,null,null,null,null,null,null,{"$f":"IF(C475=0,\"NIE\",\"TAK\")","v":"NIE"}]
[]
[null,null,"Przedsiębiorca korzysta ze zwolnienia, o którym mowa w art. 6 ust. 3 ustawy z dnia 13 czerwca 2013 r.o gospodarce opakowaniami i odpadami opakowaniowymi (Dz.U. z 2020 r., poz. 1114 z późn. zm.)"]
[]
[null,null,"Masa wprowadzonych do obrotu opakowań podlegających obowiązkowi odzysku i recyklingu"]
[]
[null,null,"w danym roku kalendarzowym w tonach [Mg]:",null,null,null,"w roku poprzedzającym dany rok kalendarzowy w tonach [Mg]:",null,null,null,"stanowiąca podstawę do obliczenia osiągniętego poziomu w tonach [Mg]:"]
[]
[null,null,{"$f":"IF(OR(WYNIK1!$O$21=0,WYNIK1!$O$21=\"\"),0,WYNIK1!$O$21)","v":0}]
[]
[]
[null,null,"Masa odpadów poddanych"]
[]
[null,null,"odzyskowi według rodzaju materiału w tonach [Mg]:",null,null,null,"odzyskowi w tym pochodzących z gosodarstw domowych w tonach [Mg]:"]
[]
[]
[]
[]
[null,null,"recyklingowi według rodzaju materiału w tonach [Mg]:",null,null,null,"recyklingowi w tym pochodzących z gosodarstw domowych w tonach [Mg]:"]
[]
[]
[]
[]
[null,null,"Wymagany poziom"]
[]
[null,null,"odzysku według rodzaju materiału w tonach [Mg]:",null,null,null,"recyklingu według rodzaju materiału w tonach [Mg]:"]
[]
[]
[]
[]
[null,null,"Osiągnięty poziom"]
[]
[null,null,"odzysku według rodzaju materiału w tonach [Mg]:",null,null,null,"recyklingu według rodzaju materiału w tonach [Mg]:"]
[]
[]
[]
[]
[null,null,"7. WIELOMATERIAŁOWE",null,null,null,null,null,null,null,null,null,null,null,{"$f":"IF(C512=0,\"NIE\",\"TAK\")","v":"NIE"}]
[]
[null,null,"Przedsiębiorca korzysta ze zwolnienia, o którym mowa w art. 6 ust. 3 ustawy z dnia 13 czerwca 2013 r.o gospodarce opakowaniami i odpadami opakowaniowymi (Dz.U. z 2020 r., poz. 1114 z późn. zm.)"]
[]
[null,null,"Masa wprowadzonych do obrotu opakowań podlegających obowiązkowi odzysku i recyklingu"]
[]
[null,null,"w danym roku kalendarzowym w tonach [Mg]:",null,null,null,"w roku poprzedzającym dany rok kalendarzowy w tonach [Mg]:",null,null,null,"stanowiąca podstawę do obliczenia osiągniętego poziomu w tonach [Mg]:"]
[]
[null,null,{"$f":"IF(OR(WYNIK1!$O$22=0,WYNIK1!$O$22=\"\"),0,WYNIK1!$O$22)","v":0}]
[]
[]
[null,null,"Masa odpadów poddanych"]
[]
[null,null,"odzyskowi według rodzaju materiału w tonach [Mg]:",null,null,null,"odzyskowi w tym pochodzących z gosodarstw domowych w tonach [Mg]:"]
[]
[]
[]
[]
[null,null,"recyklingowi według rodzaju materiału w tonach [Mg]:",null,null,null,"recyklingowi w tym pochodzących z gosodarstw domowych w tonach [Mg]:"]
[]
[]
[]
[]
[null,null,"Wymagany poziom"]
[]
[null,null,"odzysku według rodzaju materiału w tonach [Mg]:",null,null,null,"recyklingu według rodzaju materiału w tonach [Mg]:"]
[]
[]
[]
[]
[null,null,"Osiągnięty poziom"]
[]
[null,null,"odzysku według rodzaju materiału w tonach [Mg]:",null,null,null,"recyklingu według rodzaju materiału w tonach [Mg]:"]
[]
[]
[]
[]
[null,null,"8. POZOSTAŁE",null,null,null,null,null,null,null,null,null,null,null,{"$f":"IF(C549=0,\"NIE\",\"TAK\")","v":"NIE"}]
[]
[null,null,"Przedsiębiorca korzysta ze zwolnienia, o którym mowa w art. 6 ust. 3 ustawy z dnia 13 czerwca 2013 r.o gospodarce opakowaniami i odpadami opakowaniowymi (Dz.U. z 2020 r., poz. 1114 z późn. zm.)"]
[]
[null,null,"Masa wprowadzonych do obrotu opakowań podlegających obowiązkowi odzysku i recyklingu"]
[]
[null,null,"w danym roku kalendarzowym w tonach [Mg]:",null,null,null,"w roku poprzedzającym dany rok kalendarzowy w tonach [Mg]:",null,null,null,"stanowiąca podstawę do obliczenia osiągniętego poziomu w tonach [Mg]:"]
[]
[null,null,{"$f":"IF(OR(WYNIK1!$O$23=0,WYNIK1!$O$23=\"\"),0,WYNIK1!$O$23)","v":0}]
[]
[]
[null,null,"Masa odpadów poddanych"]
[]
[null,null,"odzyskowi według rodzaju materiału w tonach [Mg]:",null,null,null,"odzyskowi w tym pochodzących z gosodarstw domowych w tonach [Mg]:"]
[]
[]
[]
[]
[null,null,"recyklingowi według rodzaju materiału w tonach [Mg]:",null,null,null,"recyklingowi w tym pochodzących z gosodarstw domowych w tonach [Mg]:"]
[]
[]
[]
[]
[null,null,"Wymagany poziom"]
[]
[null,null,"odzysku według rodzaju materiału w tonach [Mg]:",null,null,null,"recyklingu według rodzaju materiału w tonach [Mg]:"]
[]
[]
[]
[]
[null,null,"Osiągnięty poziom"]
[]
[null,null,"odzysku według rodzaju materiału w tonach [Mg]:",null,null,null,"recyklingu według rodzaju materiału w tonach [Mg]:"]
[]
[]
[]
[]
[]
[null,null,"Dział II  Tabela 5.4. Informacja o opakowaniach po środkach niebezpiecznych będących środkami ochrony roślin"]
[null,null,null,null,null,null,null,null,null,null,null,null,null,null,null,null,null,{"$f":"SUM(G592,G625,G657,G689,G721,G753,G785,G817)","v":0}]
[]
[null,null,"Rodzaj opakowania, z którego powstał odpad"]
[]
[null,null,"1. TWORZYWA SZTUCZNE",null,null,null,null,null,null,null,null,null,null,null,{"$f":"IF(C592=0,\"NIE\",\"TAK\")","v":"NIE"}]
[]
[null,null,"Przedsiębiorca korzysta ze zwolnienia, o którym mowa w art. 6 ust. 3 ustawy z dnia 13 czerwca 2013 r.o gospodarce opakowaniami i odpadami opakowaniowymi (Dz.U. z 2020 r., poz. 1114 z późn. zm.)"]
[]
[null,null,"Masa wprowadzonych do obrotu opakowań podlegających obowiązkowi odzysku i recyklingu"]
[]
[null,null,"w danym roku kalendarzowym w tonach [Mg]:",null,null,null,"w roku poprzedzającym dany rok kalendarzowy w tonach [Mg]:",null,null,null,"stanowiąca podstawę do obliczenia osiągniętego poziomu w tonach [Mg]:"]
[]
[null,null,{"$f":"IF(OR(WYNIK1!$O$26=0,WYNIK1!$O$26=\"\"),0,WYNIK1!$O$26)","v":0}]
[]
[]
[null,null,"Masa odpadów poddanych"]
[]
[null,null,"odzyskowi według rodzaju materiału w tonach [Mg]:",null,null,null,"odzyskowi w tym pochodzących z gosodarstw domowych w tonach [Mg]:"]
[]
[]
[]
[null,null,"recyklingowi według rodzaju materiału w tonach [Mg]:",null,null,null,"recyklingowi w tym pochodzących z gosodarstw domowych w tonach [Mg]:"]
[]
[]
[]
[null,null,"Wymagany poziom"]
[]
[null,null,"odzysku według rodzaju materiału w tonach [Mg]:",null,null,null,"recyklingu według rodzaju materiału w tonach [Mg]:"]
[]
[]
[]
[null,null,"Osiągnięty poziom"]
[]
[null,null,"odzysku według rodzaju materiału w tonach [Mg]:",null,null,null,"recyklingu według rodzaju materiału w tonach [Mg]:"]
[]
[]
[]
[null,null,"2. ALUMINIUM",null,null,null,null,null,null,null,null,null,null,null,{"$f":"IF(C625=0,\"NIE\",\"TAK\")","v":"NIE"}]
[]
[null,null,"Przedsiębiorca korzysta ze zwolnienia, o którym mowa w art. 6 ust. 3 ustawy z dnia 13 czerwca 2013 r.o gospodarce opakowaniami i odpadami opakowaniowymi (Dz.U. z 2020 r., poz. 1114 z późn. zm.)"]
[]
[null,null,"Masa wprowadzonych do obrotu opakowań podlegających obowiązkowi odzysku i recyklingu"]
[]
[null,null,"w danym roku kalendarzowym w tonach [Mg]:",null,null,null,"w roku poprzedzającym dany rok kalendarzowy w tonach [Mg]:",null,null,null,"stanowiąca podstawę do obliczenia osiągniętego poziomu w tonach [Mg]:"]
[]
[null,null,{"$f":"IF(OR(WYNIK1!$O$27=0,WYNIK1!$O$27=\"\"),0,WYNIK1!$O$27)","v":0}]
[]
[null,null,"Masa odpadów poddanych"]
[]
[null,null,"odzyskowi według rodzaju materiału w tonach [Mg]:",null,null,null,"odzyskowi w tym pochodzących z gosodarstw domowych w tonach [Mg]:"]
[]
[]
[]
[null,null,"recyklingowi według rodzaju materiału w tonach [Mg]:",null,null,null,"recyklingowi w tym pochodzących z gosodarstw domowych w tonach [Mg]:"]
[]
[]
[]
[null,null,"Wymagany poziom"]
[]
[null,null,"odzysku według rodzaju materiału w tonach [Mg]:",null,null,null,"recyklingu według rodzaju materiału w tonach [Mg]:"]
[]
[]
[]
[null,null,"Osiągnięty poziom"]
[]
[null,null,"odzysku według rodzaju materiału w tonach [Mg]:",null,null,null,"recyklingu według rodzaju materiału w tonach [Mg]:"]
[]
[]
[]
[null,null,"3. METALE- STAL, W TYM BLACHA STALOWA, ORAZ POZOSTAŁE METALE",null,null,null,null,null,null,null,null,null,null,null,{"$f":"IF(C657=0,\"NIE\",\"TAK\")","v":"NIE"}]
[]
[null,null,"Przedsiębiorca korzysta ze zwolnienia, o którym mowa w art. 6 ust. 3 ustawy z dnia 13 czerwca 2013 r.o gospodarce opakowaniami i odpadami opakowaniowymi (Dz.U. z 2020 r., poz. 1114 z późn. zm.)"]
[]
[null,null,"Masa wprowadzonych do obrotu opakowań podlegających obowiązkowi odzysku i recyklingu"]
[]
[null,null,"w danym roku kalendarzowym w tonach [Mg]:",null,null,null,"w roku poprzedzającym dany rok kalendarzowy w tonach [Mg]:",null,null,null,"stanowiąca podstawę do obliczenia osiągniętego poziomu w tonach [Mg]:"]
[]
[null,null,{"$f":"IF(OR(WYNIK1!$O$28=0,WYNIK1!$O$28=\"\"),0,WYNIK1!$O$28)","v":0}]
[]
[null,null,"Masa odpadów poddanych"]
[]
[null,null,"odzyskowi według rodzaju materiału w tonach [Mg]:",null,null,null,"odzyskowi w tym pochodzących z gosodarstw domowych w tonach [Mg]:"]
[]
[]
[]
[null,null,"recyklingowi według rodzaju materiału w tonach [Mg]:",null,null,null,"recyklingowi w tym pochodzących z gosodarstw domowych w tonach [Mg]:"]
[]
[]
[]
[null,null,"Wymagany poziom"]
[]
[null,null,"odzysku według rodzaju materiału w tonach [Mg]:",null,null,null,"recyklingu według rodzaju materiału w tonach [Mg]:"]
[]
[]
[]
[null,null,"Osiągnięty poziom"]
[]
[null,null,"odzysku według rodzaju materiału w tonach [Mg]:",null,null,null,"recyklingu według rodzaju materiału w tonach [Mg]:"]
[]
[]
[]
[null,null,"4. PAPIER I TEKTURA",null,null,null,null,null,null,null,null,null,null,null,{"$f":"IF(C689=0,\"NIE\",\"TAK\")","v":"NIE"}]
[]
[null,null,"Przedsiębiorca korzysta ze zwolnienia, o którym mowa w art. 6 ust. 3 ustawy z dnia 13 czerwca 2013 r.o gospodarce opakowaniami i odpadami opakowaniowymi (Dz.U. z 2020 r., poz. 1114 z późn. zm.)"]
[]
[null,null,"Masa wprowadzonych do obrotu opakowań podlegających obowiązkowi odzysku i recyklingu"]
[]
[null,null,"w danym roku kalendarzowym w tonach [Mg]:",null,null,null,"w roku poprzedzającym dany rok kalendarzowy w tonach [Mg]:",null,null,null,"stanowiąca podstawę do obliczenia osiągniętego poziomu w tonach [Mg]:"]
[]
[null,null,{"$f":"IF(OR(WYNIK1!$O$29=0,WYNIK1!$O$29=\"\"),0,WYNIK1!$O$29)","v":0}]
[]
[null,null,"Masa odpadów poddanych"]
[]
[null,null,"odzyskowi według rodzaju materiału w tonach [Mg]:",null,null,null,"odzyskowi w tym pochodzących z gosodarstw domowych w tonach [Mg]:"]
[]
[]
[]
[null,null,"recyklingowi według rodzaju materiału w tonach [Mg]:",null,null,null,"recyklingowi w tym pochodzących z gosodarstw domowych w tonach [Mg]:"]
[]
[]
[]
[null,null,"Wymagany poziom"]
[]
[null,null,"odzysku według rodzaju materiału w tonach [Mg]:",null,null,null,"recyklingu według rodzaju materiału w tonach [Mg]:"]
[]
[]
[]
[null,null,"Osiągnięty poziom"]
[]
[null,null,"odzysku według rodzaju materiału w tonach [Mg]:",null,null,null,"recyklingu według rodzaju materiału w tonach [Mg]:"]
[]
[]
[]
[null,null,"5. SZKŁO",null,null,null,null,null,null,null,null,null,null,null,{"$f":"IF(C721=0,\"NIE\",\"TAK\")","v":"NIE"}]
[]
[null,null,"Przedsiębiorca korzysta ze zwolnienia, o którym mowa w art. 6 ust. 3 ustawy z dnia 13 czerwca 2013 r.o gospodarce opakowaniami i odpadami opakowaniowymi (Dz.U. z 2020 r., poz. 1114 z późn. zm.)"]
[]
[null,null,"Masa wprowadzonych do obrotu opakowań podlegających obowiązkowi odzysku i recyklingu"]
[]
[null,null,"w danym roku kalendarzowym w tonach [Mg]:",null,null,null,"w roku poprzedzającym dany rok kalendarzowy w tonach [Mg]:",null,null,null,"stanowiąca podstawę do obliczenia osiągniętego poziomu w tonach [Mg]:"]
[]
[null,null,{"$f":"IF(OR(WYNIK1!$O$30=0,WYNIK1!$O$30=\"\"),0,WYNIK1!$O$30)","v":0}]
[]
[null,null,"Masa odpadów poddanych"]
[]
[null,null,"odzyskowi według rodzaju materiału w tonach [Mg]:",null,null,null,"odzyskowi w tym pochodzących z gosodarstw domowych w tonach [Mg]:"]
[]
[]
[]
[null,null,"recyklingowi według rodzaju materiału w tonach [Mg]:",null,null,null,"recyklingowi w tym pochodzących z gosodarstw domowych w tonach [Mg]:"]
[]
[]
[]
[null,null,"Wymagany poziom"]
[]
[null,null,"odzysku według rodzaju materiału w tonach [Mg]:",null,null,null,"recyklingu według rodzaju materiału w tonach [Mg]:"]
[]
[]
[]
[null,null,"Osiągnięty poziom"]
[]
[null,null,"odzysku według rodzaju materiału w tonach [Mg]:",null,null,null,"recyklingu według rodzaju materiału w tonach [Mg]:"]
[]
[]
[]
[null,null,"6. DREWNO",null,null,null,null,null,null,null,null,null,null,null,{"$f":"IF(C753=0,\"NIE\",\"TAK\")","v":"NIE"}]
[]
[null,null,"Przedsiębiorca korzysta ze zwolnienia, o którym mowa w art. 6 ust. 3 ustawy z dnia 13 czerwca 2013 r.o gospodarce opakowaniami i odpadami opakowaniowymi (Dz.U. z 2020 r., poz. 1114 z późn. zm.)"]
[]
[null,null,"Masa wprowadzonych do obrotu opakowań podlegających obowiązkowi odzysku i recyklingu"]
[]
[null,null,"w danym roku kalendarzowym w tonach [Mg]:",null,null,null,"w roku poprzedzającym dany rok kalendarzowy w tonach [Mg]:",null,null,null,"stanowiąca podstawę do obliczenia osiągniętego poziomu w tonach [Mg]:"]
[]
[null,null,{"$f":"IF(OR(WYNIK1!$O$31=0,WYNIK1!$O$31=\"\"),0,WYNIK1!$O$31)","v":0}]
[]
[null,null,"Masa odpadów poddanych"]
[]
[null,null,"odzyskowi według rodzaju materiału w tonach [Mg]:",null,null,null,"odzyskowi w tym pochodzących z gosodarstw domowych w tonach [Mg]:"]
[]
[]
[]
[null,null,"recyklingowi według rodzaju materiału w tonach [Mg]:",null,null,null,"recyklingowi w tym pochodzących z gosodarstw domowych w tonach [Mg]:"]
[]
[]
[]
[null,null,"Wymagany poziom"]
[]
[null,null,"odzysku według rodzaju materiału w tonach [Mg]:",null,null,null,"recyklingu według rodzaju materiału w tonach [Mg]:"]
[]
[]
[]
[null,null,"Osiągnięty poziom"]
[]
[null,null,"odzysku według rodzaju materiału w tonach [Mg]:",null,null,null,"recyklingu według rodzaju materiału w tonach [Mg]:"]
[]
[]
[]
[null,null,"7. WIELOMATERIAŁOWE",null,null,null,null,null,null,null,null,null,null,null,{"$f":"IF(C785=0,\"NIE\",\"TAK\")","v":"NIE"}]
[]
[null,null,"Przedsiębiorca korzysta ze zwolnienia, o którym mowa w art. 6 ust. 3 ustawy z dnia 13 czerwca 2013 r.o gospodarce opakowaniami i odpadami opakowaniowymi (Dz.U. z 2020 r., poz. 1114 z późn. zm.)"]
[]
[null,null,"Masa wprowadzonych do obrotu opakowań podlegających obowiązkowi odzysku i recyklingu"]
[]
[null,null,"w danym roku kalendarzowym w tonach [Mg]:",null,null,null,"w roku poprzedzającym dany rok kalendarzowy w tonach [Mg]:",null,null,null,"stanowiąca podstawę do obliczenia osiągniętego poziomu w tonach [Mg]:"]
[]
[null,null,{"$f":"IF(OR(WYNIK1!$O$32=0,WYNIK1!$O$32=\"\"),0,WYNIK1!$O$32)","v":0}]
[]
[null,null,"Masa odpadów poddanych"]
[]
[null,null,"odzyskowi według rodzaju materiału w tonach [Mg]:",null,null,null,"odzyskowi w tym pochodzących z gosodarstw domowych w tonach [Mg]:"]
[]
[]
[]
[null,null,"recyklingowi według rodzaju materiału w tonach [Mg]:",null,null,null,"recyklingowi w tym pochodzących z gosodarstw domowych w tonach [Mg]:"]
[]
[]
[]
[null,null,"Wymagany poziom"]
[]
[null,null,"odzysku według rodzaju materiału w tonach [Mg]:",null,null,null,"recyklingu według rodzaju materiału w tonach [Mg]:"]
[]
[]
[]
[null,null,"Osiągnięty poziom"]
[]
[null,null,"odzysku według rodzaju materiału w tonach [Mg]:",null,null,null,"recyklingu według rodzaju materiału w tonach [Mg]:"]
[]
[]
[]
[null,null,"8. POZOSTAŁE",null,null,null,null,null,null,null,null,null,null,null,{"$f":"IF(C817=0,\"NIE\",\"TAK\")","v":"NIE"}]
[]
[null,null,"Przedsiębiorca korzysta ze zwolnienia, o którym mowa w art. 6 ust. 3 ustawy z dnia 13 czerwca 2013 r.o gospodarce opakowaniami i odpadami opakowaniowymi (Dz.U. z 2020 r., poz. 1114 z późn. zm.)"]
[]
[null,null,"Masa wprowadzonych do obrotu opakowań podlegających obowiązkowi odzysku i recyklingu"]
[]
[null,null,"w danym roku kalendarzowym w tonach [Mg]:",null,null,null,"w roku poprzedzającym dany rok kalendarzowy w tonach [Mg]:",null,null,null,"stanowiąca podstawę do obliczenia osiągniętego poziomu w tonach [Mg]:"]
[]
[null,null,{"$f":"IF(OR(WYNIK1!$O$33=0,WYNIK1!$O$33=\"\"),0,WYNIK1!$O$33)","v":0}]
[]
[null,null,"Masa odpadów poddanych"]
[]
[null,null,"odzyskowi według rodzaju materiału w tonach [Mg]:",null,null,null,"odzyskowi w tym pochodzących z gosodarstw domowych w tonach [Mg]:"]
[]
[]
[]
[null,null,"recyklingowi według rodzaju materiału w tonach [Mg]:",null,null,null,"recyklingowi w tym pochodzących z gosodarstw domowych w tonach [Mg]:"]
[]
[]
[]
[null,null,"Wymagany poziom"]
[]
[null,null,"odzysku według rodzaju materiału w tonach [Mg]:",null,null,null,"recyklingu według rodzaju materiału w tonach [Mg]:"]
[]
[]
[]
[null,null,"Osiągnięty poziom"]
[]
[null,null,"odzysku według rodzaju materiału w tonach [Mg]:",null,null,null,"recyklingu według rodzaju materiału w tonach [Mg]:"]
[]
[]
[]
[]
[null,null,"Dział II  Tabela 7. Informacja o wysokości należnej opłaty produktowej",null,null,null,null,null,null,null,null,null,null,null,null,null,null,{"$f":"SUM(R6:R580)","v":0},null,{"$f":"S842","v":0},null,0]
[]
[]
[null,null,"A. WYSOKOŚC NALEŻNEJ OPŁATY PRODUKTOWEJ:"]
[]
[null,null,"odzysk [zł]",null,null,"recykling ogółem [zł]"]
[]
[null,null,{"$f":"IF(OR(WYNIK1!$AJ$39=0,WYNIK1!$AJ$39=\"\"),0,WYNIK1!$AJ$39)","v":0},null,null,{"$f":"IF(OR(WYNIK1!$AJ$40=0,WYNIK1!$AJ$40=\"\"),0,WYNIK1!$AJ$40)","v":0}]
[]
[null,null,"Rodzaj opakowania, z którego powstał odpad"]
[]
[null,null,"1. TWORZYWA SZTUCZNE",null,null,null,null,null,null,null,null,null,null,null,{"$f":"IF(OR(C862=0,C862=\"\"),\"NIE\",\"TAK\")","v":"NIE"}]
[]
[null,null,"Przedsiębiorca korzysta ze zwolnienia, o którym mowa w art. 6 ust. 3 ustawy z dnia 13 czerwca 2013 r.o gospodarce opakowaniami i odpadami opakowaniowymi (Dz.U. z 2020 r., poz. 1114 z późn. zm.)"]
[]
[null,null,"Wysokość należnej opłaty produktowej"]
[]
[null,null,"recykling [zł]",null,null,null,"w tym pochodzących z gosodarstw domowych w tonach [zł]:"]
[]
[]
[null,null,{"$f":"IF(OR(WYNIK1!$AJ$41=0,WYNIK1!$AJ$41=\"\"),0,WYNIK1!$AJ$41)","v":0}]
[]
[null,null,"2. ALUMINIUM",null,null,null,null,null,null,null,null,null,null,null,{"$f":"IF(OR(C873=0,C873=\"\"),\"NIE\",\"TAK\")","v":"NIE"}]
[]
[null,null,"Przedsiębiorca korzysta ze zwolnienia, o którym mowa w art. 6 ust. 3 ustawy z dnia 13 czerwca 2013 r.o gospodarce opakowaniami i odpadami opakowaniowymi (Dz.U. z 2020 r., poz. 1114 z późn. zm.)"]
[]
[null,null,"Wysokość należnej opłaty produktowej"]
[]
[null,null,"recykling [zł]",null,null,null,"w tym pochodzących z gosodarstw domowych w tonach [zł]:"]
[]
[]
[null,null,{"$f":"IF(OR(WYNIK1!$AJ$42=0,WYNIK1!$AJ$42=\"\"),0,WYNIK1!$AJ$42)","v":0}]
[]
[null,null,"3. METALE- STAL, W TYM BLACHA STALOWA, ORAZ POZOSTAŁE METALE",null,null,null,null,null,null,null,null,null,null,null,{"$f":"IF(OR(C884=0,C884=\"\"),\"NIE\",\"TAK\")","v":"NIE"}]
[]
[null,null,"Przedsiębiorca korzysta ze zwolnienia, o którym mowa w art. 6 ust. 3 ustawy z dnia 13 czerwca 2013 r.o gospodarce opakowaniami i odpadami opakowaniowymi (Dz.U. z 2020 r., poz. 1114 z późn. zm.)"]
[]
[null,null,"Wysokość należnej opłaty produktowej"]
[]
[null,null,"recykling [zł]",null,null,null,"w tym pochodzących z gosodarstw domowych w tonach [zł]:"]
[]
[]
[null,null,{"$f":"IF(OR(WYNIK1!$AJ$43=0,WYNIK1!$AJ$43=\"\"),0,WYNIK1!$AJ$43)","v":0}]
[]
[null,null,"4. PAPIER I TEKTURA",null,null,null,null,null,null,null,null,null,null,null,{"$f":"IF(OR(C895=0,C895=\"\"),\"NIE\",\"TAK\")","v":"NIE"}]
[]
[null,null,"Przedsiębiorca korzysta ze zwolnienia, o którym mowa w art. 6 ust. 3 ustawy z dnia 13 czerwca 2013 r.o gospodarce opakowaniami i odpadami opakowaniowymi (Dz.U. z 2020 r., poz. 1114 z późn. zm.)"]
[]
[null,null,"Wysokość należnej opłaty produktowej"]
[]
[null,null,"recykling [zł]",null,null,null,"w tym pochodzących z gosodarstw domowych w tonach [zł]:"]
[]
[]
[null,null,{"$f":"IF(OR(WYNIK1!$AJ$44=0,WYNIK1!$AJ$44=\"\"),0,WYNIK1!$AJ$44)","v":0}]
[]
[null,null,"5. SZKŁO",null,null,null,null,null,null,null,null,null,null,null,{"$f":"IF(OR(C906=0,C906=\"\"),\"NIE\",\"TAK\")","v":"NIE"}]
[]
[null,null,"Przedsiębiorca korzysta ze zwolnienia, o którym mowa w art. 6 ust. 3 ustawy z dnia 13 czerwca 2013 r.o gospodarce opakowaniami i odpadami opakowaniowymi (Dz.U. z 2020 r., poz. 1114 z późn. zm.)"]
[]
[null,null,"Wysokość należnej opłaty produktowej"]
[]
[null,null,"recykling [zł]",null,null,null,"w tym pochodzących z gosodarstw domowych w tonach [zł]:"]
[]
[]
[null,null,{"$f":"IF(OR(WYNIK1!$AJ$45=0,WYNIK1!$AJ$45=\"\"),0,WYNIK1!$AJ$45)","v":0}]
[]
[null,null,"6. DREWNO",null,null,null,null,null,null,null,null,null,null,null,{"$f":"IF(OR(C917=0,C917=\"\"),\"NIE\",\"TAK\")","v":"NIE"}]
[]
[null,null,"Przedsiębiorca korzysta ze zwolnienia, o którym mowa w art. 6 ust. 3 ustawy z dnia 13 czerwca 2013 r.o gospodarce opakowaniami i odpadami opakowaniowymi (Dz.U. z 2020 r., poz. 1114 z późn. zm.)"]
[]
[null,null,"Wysokość należnej opłaty produktowej"]
[]
[null,null,"recykling [zł]",null,null,null,"w tym pochodzących z gosodarstw domowych w tonach [zł]:"]
[]
[]
[null,null,{"$f":"IF(OR(WYNIK1!$AJ$46=0,WYNIK1!$AJ$46=\"\"),0,WYNIK1!$AJ$46)","v":0}]
[]
[null,null,"7. WIELOMATERIAŁOWE",null,null,null,null,null,null,null,null,null,null,null,{"$f":"IF(OR(C928=0,C928=\"\"),\"NIE\",\"TAK\")","v":"NIE"}]
[]
[null,null,"Przedsiębiorca korzysta ze zwolnienia, o którym mowa w art. 6 ust. 3 ustawy z dnia 13 czerwca 2013 r.o gospodarce opakowaniami i odpadami opakowaniowymi (Dz.U. z 2020 r., poz. 1114 z późn. zm.)"]
[]
[null,null,"Wysokość należnej opłaty produktowej"]
[]
[null,null,"recykling [zł]",null,null,null,"w tym pochodzących z gosodarstw domowych w tonach [zł]:"]
[]
[]
[null,null,{"$f":"IF(OR(WYNIK1!$AJ$47=0,WYNIK1!$AJ$47=\"\"),0,WYNIK1!$AJ$47)","v":0}]
[]
[null,null,"8. POZOSTAŁE",null,null,null,null,null,null,null,null,null,null,null,{"$f":"IF(OR(C939=0,C939=\"\"),\"NIE\",\"TAK\")","v":"NIE"}]
[]
[null,null,"Przedsiębiorca korzysta ze zwolnienia, o którym mowa w art. 6 ust. 3 ustawy z dnia 13 czerwca 2013 r.o gospodarce opakowaniami i odpadami opakowaniowymi (Dz.U. z 2020 r., poz. 1114 z późn. zm.)"]
[]
[null,null,"Wysokość należnej opłaty produktowej"]
[]
[null,null,"recykling [zł]",null,null,null,"w tym pochodzących z gosodarstw domowych w tonach [zł]:"]
[]
[]
[null,null,{"$f":"IF(OR(SUM(WYNIK1!$AG$22,WYNIK1!$AG$32)=0,SUM(WYNIK1!$AG$22,WYNIK1!$AG$32)=\"\"),0,SUM(WYNIK1!$AG$22,WYNIK1!$AG$32))","v":0}]
[]
[]
[]
[null,null,"B. Łączna opłata produktowa [zł]",null,null,null,{"$f":"IF(OR(WYNIK1!$AJ$48=0,WYNIK1!$AJ$48=\"\"),0,WYNIK1!$AJ$48)","v":0}]
[]
[]
[null,null,"Dział II  Tabela 8.1. Publiczne kampanie edukacyjne- Wprowadzający produkty w opakowaniach"]
[null,null,null,null,null,null,null,null,null,null,null,null,null,null,null,null,null,null,null,null,"WYPELNIJ TABELĘ O PUBLICZNYCH KAMPANIACH EDUKACYJNYCH !!!"]
[null,null,"Przedsiębiorca korzysta ze zwolnienia, o którym mowa w art. 6 ust. 3 ustawy z dnia 13 czerwca 2013 r.o gospodarce opakowaniami i odpadami opakowaniowymi (Dz.U. z 2020 r., poz. 1114 z późn. zm.)"]
[]
[null,null,"Minimalna wysokość środków, które należy przeznaczyć na publiczne kampanie edukacyjne [zł]"]
[]
[null,null,{"$f":"IF(OR(WYNIK1!$B$41=0,WYNIK1!$B$41=\"\"),0,WYNIK1!$B$41)","v":0}]
[]
[null,null,"Wysokość środków przeznaczonych na publiczne kampanie edukacyjne we własnym zakresie [zł]"]
[]
[]
[]
[null,null,"Wysokość środków przeznacznych na publiczne kampanie edukacyjne przekazanych na odrębny rachunek bankowy marszałka województwa"]
[]
[]
[]
[null,null,"Sposób wykorzystania środków przeznaczonych na publiczne kampanie edukacyjne"]